Cogmind - Beta 14 @@@ ROGUE MODE // 2024.08.07 @ 23:58:39 Player: MORONI274 Result: Destroyed by G-47 Trooper with Particle Gun Performance ------------- Evolutions (2) 1000 Regions Visited (3) 600 Robots Destroyed (35) 175 Value Destroyed (765) 765 Prototype IDs (0) 0 Alien Tech Used (0) 0 Bonus (0) 0 TOTAL SCORE: 2540 Bonus ------- None Cogmind --------- Core Integrity 0/550 Matter 16/500 Energy 100/100 System Corruption 0% Temperature Cool (9) Movement Core (2400) Ox47 Location -8/Materials Parts ------- > --- POWER (1) -------- (None) > --- PROPULSION (2) --- (None) > --- UTILITY (4) ------ Cargo Storage Unit High-capacity Matter Pod System Shield > --- WEAPON (4) ------- (None) > --- INVENTORY (30) --- Ion Engine Heat Sink Large Storage Unit Sensor Array Improved Terrain Scanner Core Shielding Ion Cannon Battle Cannon Rocket Launcher Mining Claw Mining Claw Peak State ------------ > --- POWER ------------ Light Nuclear Core > --- PROPULSION ------- Light Treads Light Treads > --- UTILITY ---------- Cargo Storage Unit High-capacity Matter Pod Makeshift System Shield > --- WEAPON ----------- Subdweller Beam Cannon Light Assault Rifle Battle Rifle Rocket Launcher > --- INVENTORY -------- Ion Engine Wheel Heat Sink Large Storage Unit Sensor Array Improved Terrain Scanner Core Shielding Ion Cannon Battle Cannon Rocket Launcher Rocket Launcher Mining Claw Mining Claw [Rating: 21] Favorites ----------- Power Ion Engine Engine Ion Engine Power Core Light Nuclear Core Propulsion Light Treads Treads Light Treads Wheel Wheel Utility High-capacity Matter Pod Storage High-capacity Matter Pod Hackware Makeshift System Shield Weapon Light Assault Rifle Energy Cannon Subdweller Beam Cannon Ballistic Gun Light Assault Rifle Launcher Rocket Launcher Slashing Weapon Mining Claw Build | -11 -10 -10 -8 ------- Run | Yrd Mat Sub Mat Slots Evolved 4 | . . . 4 Power . | . . . . Propulsion . | . . . . Utility 2 | . . . 2 Weapon 2 | . . . 2 Parts Attached 30 | 6 7 4 13 Power 2 | 1 . . 1 Engine 1 | 1 . . . Core 1 | . . . 1 Reactor . | . . . . Propulsion 6 | 2 . 1 3 Treads 4 | 2 . . 2 Leg . | . . . . Wheel 2 | . . 1 1 Hover . | . . . . Flight . | . . . . Utility 9 | 1 5 . 3 Device . | . . . . Storage 7 | 1 5 . 1 Processor . | . . . . Hackware 2 | . . . 2 Protection . | . . . . Artifact . | . . . . Weapon 13 | 2 2 3 6 Energy Gun . | . . . . Energy Cannon 1 | . . . 1 Ballistic Gun 4 | 2 . 1 1 Ballistic Cannon . | . . . . Launcher 7 | . 2 2 3 Special Weapon . | . . . . Impact Weapon . | . . . . Slashing Weapon 1 | . . . 1 Piercing Weapon . | . . . . Special Melee Weapon . | . . . . Unidentified Prototypes . | . . . . Parts Lost 16 | . 1 4 11 Power 2 | . . . 2 Propulsion 4 | . . 1 3 Utility 1 | . . . 1 Weapon 9 | . 1 3 5 Highest Loss Streak 10 | . 1 4 10 To Critical Strikes . | . . . . Average Slot Usage (%) 87 | . 90 87 81 Engine 12 | . 14 14 3 Treads 20 | . 28 14 9 Wheel 2 | . . 3 6 Storage 21 | . 19 28 18 Hackware 1 | . . . 8 Energy Cannon 1 | . . . 8 Ballistic Gun 18 | . 24 12 12 Launcher 7 | . 3 13 11 Peak Build Rating 21 | 6 10 10 21 Average Rating 9 | 4 7 8 17 On Entrance 6 | . 6 10 10 Naked Turns . | . . . . Heaviest Build 166 | 13 148 35 166 Greatest Support 40 | 40 40 40 40 Greatest Overweight (x) 52 | 1 3 3 52 Average Overweight (x) 2 | . . 1 14 Largest Inventory Capacity 30 | 8 30 15 30 Average Capacity 19 | 7 20 15 30 Most Carried 15 | 7 15 15 14 Average Carried 11 | 3 11 13 11 Final Capacity 30 | 8 15 15 30 Final Carried 15 | 6 15 15 11 Class Distribution -------------------- 62% | Mutant 22% | Hauler-Mutant 15% | Hauler-Gunner Dominant Class ---------------- Mutant | -10/Materials Mutant | -10/Subcaves Hauler-Gunner | -8/Materials Resources | -11 -10 -10 -8 ----------- Run | Yrd Mat Sub Mat Matter Collected 646 | 226 228 133 59 Remotely . | . . . . Salvage Created 678 | . 404 12 262 Parts 55 | . 33 3 19 Haulers Intercepted 1 | . . . 1 Recyclers Shooed . | . . . . Parts Field Recycled . | . . . . Retrieved Matter . | . . . . Parts Self-Destructed 5 | . . 5 . Prevented . | . . . . Kills | -11 -10 -10 -8 ------- Run | Yrd Mat Sub Mat Combat Hostiles Destroyed 24 | . 14 2 8 Guns 5 | . 3 . 2 Cannons 1 | . . . 1 AOE 18 | . 11 2 5 Classes Destroyed 9 | . 7 . 2 Worker 2 | . 2 . . Builder 2 | . 1 . 1 Hauler 1 | . . . 1 Recycler 1 | . 1 . . Operator 2 | . 1 . 1 Watcher 3 | . 2 . 1 Swarmer 12 | . 6 2 4 Grunt 11 | . 8 . 3 Duelist 1 | . . . 1 Best Kill Streak 16 | . 16 2 4 Combat Bots Only 9 | . 9 2 4 Max Kills in Single Turn 4 | . 4 2 4 Gunslinging . | . . . . Exploded 2 | . 2 2 2 Melee . | . . . . Uniques/NPCs Destroyed . | . . . . Combat | -11 -10 -10 -8 -------- Run | Yrd Mat Sub Mat Hostile Shots Fired 237 | . 62 64 111 Missed 80 | . 18 34 28 Damage Taken 2422 | . 510 255 1657 Core 694 | . 85 53 556 Absorbed by Shields . | . . . . Core Remaining (%) 72 | 100 . 44 . Volleys Fired 56 | . 37 6 13 Largest 4 | . 2 2 4 Hottest 166 | . 53 53 166 Shots Fired 116 | . 61 11 44 Gun 69 | . 47 5 17 Cannon 12 | . . . 12 Launcher 35 | . 14 6 15 Special . | . . . . Kinetic 69 | . 47 5 17 Thermal 12 | . . . 12 Explosive 35 | . 14 6 15 Electromagnetic . | . . . . Robot Hit Streak 9 | . 9 2 4 Robot Miss Streak 3 | . 3 3 2 Penetration Max . | . . . . Secondary Targets . | . . . . Shots Hit Robots 52 | . 31 5 16 Core Hits 67 | . 32 9 26 Critical Kills . | . . . . Critical Parts Destroyed . | . . . . Critical Strikes . | . . . . Melee Attacks . | . . . . Impact . | . . . . Slashing . | . . . . Piercing . | . . . . Sneak Attacks . | . . . . Combat Hostiles . | . . . . Follow-up Attacks . | . . . . Damage Inflicted 3069 | . 1448 385 1236 Guns 413 | . 332 11 70 Cannons 161 | . . . 161 Explosions 2454 | . 1097 372 985 Melee . | . . . . Ramming 41 | . 19 2 20 Kinetic 413 | . 332 11 70 Thermal 161 | . . . 161 Explosive 2126 | . 1097 372 657 Electromagnetic 328 | . . . 328 Impact . | . . . . Slashing . | . . . . Piercing . | . . . . Highest Corruption . | . . . . Average Corruption . | . . . . Corruption Purged . | . . . . Corruption Blocked . | . . . . Overload Shots . | . . . . Overflow Damage 125 | . 65 2 58 Projectiles . | . . . . Explosions 125 | . 65 2 58 Melee . | . . . . Knockbacks 1 | . 1 . . Impact 1 | . 1 . . Kinetic . | . . . . Secondary . | . . . . Self-Inflicted Damage 337 | . 39 36 262 Shots 12 | . 2 1 9 Rammed 7 | . 3 1 3 Targets Rammed 7 | . 3 1 3 Kicked . | . . . . Crushed . | . . . . Highest Temperature 174 | . 18 . 174 Average Temperature 44 | . 9 . 56 Received Heat Transfer 942 | . 180 132 630 Siege Activations . | . . . . Robots Corrupted . | . . . . Combat Hostiles . | . . . . Parts Fried . | . . . . Impact Corruptions . | . . . . Robots Melted . | . . . . Combat Hostiles . | . . . . Parts Melted . | . . . . Heat Transferred 222 | . . . 222 Parts Sabotaged . | . . . . Parts Stolen . | . . . . Parts Stripped . | . . . . Power Chain Reactions . | . . . . Alert | -11 -10 -10 -8 ------- Run | Yrd Mat Sub Mat Peak Influence 343 | . 343 . 325 Initial 18 | . . . 18 Average 77 | . 45 . 189 Maximum Alert Level 1 | . 1 . 1 Low Security (%) 80 | 100 91 . 41 Level 1 19 | . 8 . 58 Level 2 . | . . . . Level 3 . | . . . . Level 4 . | . . . . Level 5 . | . . . . High Security . | . . . . Max Security . | . . . . Squads Dispatched 4 | . 2 . 2 Investigation 1 | . 1 . . Extermination . | . . . . Reinforcement 3 | . 1 . 2 Assault . | . . . . Garrison . | . . . . Intercept . | . . . . Searches Triggered . | . . . . Construction Impeded 1 | . . . 1 Haulers Reinforced . | . . . . Active Scanning Responses . | . . . . Cargo Convoy Interrupts . | . . . . Stealth | -11 -10 -10 -8 --------- Run | Yrd Mat Sub Mat Distress Signals 2 | . 1 . 1 Communications Jammed . | . . . . Distress Signals . | . . . . Times Spotted 41 | . 19 6 16 Peak Tracking Total 8 | . 6 6 8 Tactical Retreats 3 | . 1 2 . Traps | -11 -10 -10 -8 ------- Run | Yrd Mat Sub Mat Traps Triggered 1 | . 1 . . Indirectly . | . . . . Trap Hack Attempts . | . . . . Triggered . | . . . . Disarmed . | . . . . Reprogrammed . | . . . . Reused . | . . . . Traps Extracted . | . . . . Installed . | . . . . Triggered . | . . . . Machines | -11 -10 -10 -8 ---------- Run | Yrd Mat Sub Mat Machines Disabled 9 | . 1 4 4 Max in Single Turn 2 | . 1 2 2 Machines Repaired . | . . . . Machines Dismantled . | . . . . Machines Sabotaged . | . . . . Overloaded Fab Kills . | . . . . Hacking | -11 -10 -10 -8 --------- Run | Yrd Mat Sub Mat Machines Accessed 3 | . 2 . 1 Terminals 3 | . 2 . 1 Fabricators . | . . . . Repair Stations . | . . . . Recycling Units . | . . . . Scanalyzers . | . . . . Garrison Access . | . . . . Total Hacks 5 | . 3 . 2 Successful 4 | . 2 . 2 Failed 1 | . 1 . . Catastrophic . | . . . . Database Lockouts . | . . . . Manual . | . . . . Terminals 5 | . 3 . 2 Fabricators . | . . . . Repair Stations . | . . . . Recycling Units . | . . . . Scanalyzers . | . . . . Garrison Access . | . . . . Terminal Hacks 4 | . 2 . 2 Record 2 | . 1 . 1 Alert Level 2 | . 1 . 1 Fabricator Hacks . | . . . . Repair Station Hacks . | . . . . Recycling Unit Hacks . | . . . . Scanalyzer . | . . . . Garrison Access Hacks . | . . . . Unauthorized Hacks . | . . . . Terminals . | . . . . Fabricators . | . . . . Repair Stations . | . . . . Recycling Units . | . . . . Scanalyzers . | . . . . Garrison Access . | . . . . Data Cores Recovered . | . . . . Used . | . . . . Hacking Detections . | . . . . Full Trace Events . | . . . . Feedback Events . | . . . . Feedback Blocked . | . . . . Robot Schematics Acquired . | . . . . Robots Built . | . . . . Authchips . | . . . . Time . | . . . . Total Robot Build Rating . | . . . . Part Schematics Acquired . | . . . . Parts Built . | . . . . Authchips . | . . . . Time . | . . . . Total Part Build Rating . | . . . . Parts Repaired . | . . . . Time . | . . . . Parts Recycled . | . . . . Recycled Matter . | . . . . Retrieved Matter . | . . . . Retrieved Components . | . . . . Parts Scanalyzed . | . . . . Part Schematics Acquired . | . . . . Parts Damaged . | . . . . Bothacking | -11 -10 -10 -8 ------------ Run | Yrd Mat Sub Mat Used RIF Installer . | . . . . Robots Hacked . | . . . . Non-combat . | . . . . Combat . | . . . . Robot Hacks Applied . | . . . . Relay Couplers Released . | . . . . Fabnet Peak Effective % . | . . . . Robots Rewired . | . . . . Allies Hacked . | . . . . Hacks Repelled . | . . . . Allies | -11 -10 -10 -8 -------- Run | Yrd Mat Sub Mat Total Allies . | . . . . Largest Group . | . . . . Highest-Rated Group . | . . . . Highest-Rated Ally . | . . . . Total Orders . | . . . . Ally Attacks . | . . . . Total Damage . | . . . . Kills . | . . . . Allies Corrupted . | . . . . Allies Melted . | . . . . Intel | -11 -10 -10 -8 ------- Run | Yrd Mat Sub Mat Robot Analysis Total . | . . . . Derelict Logs Recovered . | . . . . Drone Launches . | . . . . Drone Recoveries . | . . . . Exploration | -11 -10 -10 -8 ------------- Run | Yrd Mat Sub Mat Turns Passed 2058 | 123 989 579 367 Spaces Moved 820 | 77 386 277 80 Core 19 | 18 . . 1 Treads 635 | 59 386 180 10 Legs . | . . . . Wheels 166 | . . 97 69 Hover . | . . . . Flight . | . . . . Fastest Speed 50 | 50 160 125 305 Average Speed 219 | 140 219 199 363 Slowest Speed 2650 | 160 400 240 2650 Overloaded Moves . | . . . . Propulsion Burnouts . | . . . . Robots Hopped . | . . . . Cave-ins Triggered . | . . . . Exploration Rate (%) 26 | 5 61 26 12 Regions Visited 3 Branch Regions 1 Pre-discovered Areas . | . . . . Known Exits Taken . | . . . . Unknown Exits Taken 3 | 1 1 1 . Scrap Searched . | . . . . Spaces Dug . | . . . . Terrain Destroyed 211 | . 82 23 106 Melee . | . . . . Projectile 3 | . . . 3 AOE 208 | . 82 23 103 Terrain Rammed . | . . . . Walls Destroyed . | . . . . Machines Disabled . | . . . . Actions | -11 -10 -10 -8 --------- Run | Yrd Mat Sub Mat Total 962 | 90 467 291 114 Wait . | . . . . Move 817 | 76 385 276 80 Hop . | . . . . Pick Up 42 | 8 26 4 4 Fast Attach 6 | 4 2 . . Attach 18 | 2 4 4 8 Detach . | . . . . Swap 6 | . 1 . 5 Drop 10 | . 9 . 1 Fire 56 | . 37 6 13 Melee . | . . . . Ram 3 | . . . 3 Kick . | . . . . Crush 4 | . 3 1 . Escape Stasis . | . . . . Rewire . | . . . . Trap . | . . . . Miscellaneous . | . . . . Route ------- -11/Scrapyard -10/Materials (discovered 3 exits: [*Mat] / [*Min] / [*Sub]) -10/Subcaves (discovered 2 exits: *Mat / [*Rec]) -8/Materials History --------- Turn | Location | Event 5 | -11/Scrapyard | Discovered new exit (range 16) 124 | -11/Scrapyard | Entered Materials 482 | -10/Materials | Build established: Hauler-Mutant 815 | -10/Materials | Discovered new exit (range 8) 881 | -10/Materials | Discovered new exit (range 4) 911 | -10/Materials | Build established: Mutant 1016 | -10/Materials | Discovered new exit (range 13) 1072 | -10/Materials | Destroyed 9 combat bots 1113 | -10/Materials | Entered Subcaves 1113 | -10/Subcaves | Discovered new exit (range 10) 1133 | -10/Subcaves | Core integrity fell below 50% 1165 | -10/Subcaves | Lost 4 parts (1n3w) 1661 | -10/Subcaves | Discovered new exit (range 11) 1692 | -10/Subcaves | Entered Materials 1692 | -8/Materials | Evolved 4 slots: Utility x2, Weapon x2 1998 | -8/Materials | Build established: Hauler-Gunner 2033 | -8/Materials | Core integrity fell below 50% 2047 | -8/Materials | Core integrity fell below 20% 2059 | -8/Materials | Destroyed by G-47 Trooper with Particle Gun Last Messages --------------- 02013_ Lgt. Treads destroyed. 02014_ Wheel destroyed. 02030_ Lgt. Assault Rifle destroyed. 02030_ Sub. Beam Cannon destroyed. 02048_ G-47 Trooper destroyed. 02049_ Rocket Launcher destroyed. 02050_ Slammed into G-47 Trooper. 02051_ Neutrino Reactor explodes. 02051_ L-31 Rogue destroyed. 02051_ Neutrino Reactor explodes. 02051_ Lgt. Nuclear Core destroyed. 02051_ Destroyed Lgt. Nuclear Core. 02051_ G-47 Trooper shuts down. 02051_ Destroyed Lgt. Nuclear Core. 02051_ G-47 Trooper destroyed. 02051_ K-01 Serf collects debris. 02051_ G-47 Trooper destroyed. 02055_ K-01 Serf collects debris. 02056_ G-47 Trooper IFF system glitched. 02056_ K-01 Serf suffers critical hit (Burn). Map ----- +----------------------------------------------------+ | ????????# ![!#??????????????????????????????? | | ????????# """ #??????????????????????????????? | | ####????# """ #??????????????????????????????? | | #????# """ #??????????????????????????????? | | ! #????# #??????????????????????????????? | | #???## #?? ???????????????????????????? | | ##### ###+####### ###????????????????????????? | | = *% #????????????????????????? | | [[ +????????????????????????? | | #????????????????????????? | | ############ #????????????????????????? | | # # # # # #????????????????????????? | | # ##???????????????????????? | | # # T???????????????????????? | | # # ""???????????????????????? | | # # #????????????????????????? | | # # #????????????????????????? | | #### "" # #????????????????????????? | | #??### # #????????????????????????? | | #?????# # ##???????????????????????? | | ##########+####### #???????????????????????? | | [%= ! ##??????????????????????? | | != ! #??????????????????????? | | ! #####??????????????????? | | ##### ### ### [g g #??????????????????? | | ???????????# ## %@ #??????????????????? | | ???????????#||!!!! ##k =g #??????????????????? | | ???????????#||!!!!### % #??????????????????? | | ???????????########?# = %! #??????????????????? | | ????????????????????# ! #??????????????????? | | ????????????????????# #%[ #??????????????????? | | ????????????????????# #= #??????????????????? | | ????????????????????# # #??????????????????? | | ????????????????????# # #??????????????????? | | ????????????????????# + #??????????????????? | | ????????????????????# # #??????????????????? | | ????????????????????# #######??????????????????? | | ????????????????????# #????????????????????????? | | ???????????????????? ?????????????????????????? | | ???????????????????? ???????????????????????????? | | ?????????????????????????????????????????????????? | | ?????????????????????????????????????????????????? | | ?????????????????????????????????????????????????? | | ?????????????????????????????????????????????????? | | ?????????????????????????????????????????????????? | | ?????????????????????????????????????????????????? | | ?????????????????????????????????????????????????? | | ?????????????????????????????????????????????????? | | ?????????????????????????????????????????????????? | | ?????????????????????????????????????????????????? | +----------------------------------------------------+ Best States ------------- Heat Dissipation 31 Energy Generation 14 Energy Capacity 250 Matter Stores 271 Matter Capacity 500 Sight Range 16 Terrain Scan Density 10 Evasion (%) 40 Recoil Reduction 2 Defensive Hacking 11 Item Schematics ----------------- None Robot Schematics ------------------ None Fabricated ------------ Nothing Alien Tech Used ----------------- None Achievements -------------- Tank Challenges ------------ None Game ------ Seed FireBehemothSubcomponent Manual? 0 Play Time 00:15:55 Cumulative 9.6 hours Start 2024.08.07 @ 23:43:26 End 2024.08.07 @ 23:58:39 Sessions 1 Manual Loads 0 Difficulty Rogue Special Mode None Game No. 17 Rogue 17 Adventurer 0 Explorer 0 Win Type - Total 0 Types 0/0/0/0/0/0/0/0/0 Lore% 7 Gallery% 14 Achievement% 16 Wizard Run 0 Options --------- Layout 1 ASCII 0 Keyboard 0 Movement Arrows Keybinds 0 Fullscreen 1 Font 24/Smallcaps Map View 50x35 Zoom Use 0% Tactical HUD 1 Map Filters NONE Filters NONE Steam 1 RUN: b57105f6-8878-4ab7-a0bd-3beb63052ce6